Cogmind - Beta 16 @@@ ROGUE MODE // 2025.10.23 @ 21:36:02 Player: Darcyisverycute Result: Destroyed by 8R-AWN with 8R-AWN's Boregun Performance ------------- Evolutions (1) 500 Regions Visited (4) 800 Robots Destroyed (79) 395 Value Destroyed (1657) 1657 Prototype IDs (29) 580 Alien Tech Used (0) 0 Bonus (311) 311 TOTAL SCORE: 4243 Bonus ------- High Alert Combat Kills 11 Aligned with FarCom 300 Cogmind --------- Core Integrity 0/400 Matter 57/300 Energy 75/100 System Corruption 6% Temperature Cool (0) Movement Treading (220) Ox1 Location -9/Exiles Parts ------- > --- POWER (1) -------- (None) > --- PROPULSION (2) --- Light Treads Improved Treads > --- UTILITY (4) ------ Huge Storage Unit Improved Targeting Computer Improved Targeting Computer > --- WEAPON (2) ------- Enhanced Autogun Enhanced Autogun > --- INVENTORY (25) --- Light Treads Improved Treads Improved Treads Potential Leg Potential Leg Medium Matter Pod (96) 0b10 Alert Chip Hacking Suite Hacking Suite Autogun Autogun Improved Assault Rifle Improved Assault Rifle Improved Assault Rifle Flak Cannon Rocket Launcher Mini Grenade Launcher Mining Claw Peak State ------------ > --- POWER ------------ Improved Ion Engine > --- PROPULSION ------- Potential Leg Potential Leg > --- UTILITY ---------- Huge Storage Unit Improved Targeting Computer Improved Targeting Computer Light Armor Plating > --- WEAPON ----------- Enhanced Autogun Enhanced Autogun > --- INVENTORY -------- Light Treads Light Treads Improved Treads Improved Treads Improved Treads Large Matter Pod 0b10 Alert Chip Hacking Suite Hacking Suite Autogun Autogun Improved Assault Rifle Improved Assault Rifle Improved Assault Rifle Enhanced Autogun Flak Cannon Rocket Launcher Mini Grenade Launcher Mining Claw [Rating: 40] Favorites ----------- Power Improved Ion Engine Engine Improved Ion Engine Propulsion Light Treads Treads Light Treads Leg Potential Leg Utility Improved Targeting Computer Device Seismic Detector Storage Huge Storage Unit Processor Improved Targeting Computer Protection Light Armor Plating Weapon Flak Cannon Energy Gun Small Laser Energy Cannon Advanced Beam Cannon Ballistic Gun Enhanced Autogun Ballistic Cannon Flak Cannon Launcher Rocket Launcher Slashing Weapon Mining Claw Build | -11 -10 -9 -9 -9 ------- Run | Yrd Mat Mat Min Exi Slots Evolved 2 | . . 2 . . Power . | . . . . . Propulsion . | . . . . . Utility 2 | . . 2 . . Weapon . | . . . . . Parts Attached 41 | 9 2 22 3 5 Power 3 | 2 . 1 . . Engine 3 | 2 . 1 . . Core . | . . . . . Reactor . | . . . . . Propulsion 11 | 2 . 5 . 4 Treads 9 | 2 . 5 . 2 Leg 2 | . . . . 2 Wheel . | . . . . . Hover . | . . . . . Flight . | . . . . . Utility 11 | 2 1 8 . . Device 2 | 1 . 1 . . Storage 3 | 1 1 1 . . Processor 3 | . . 3 . . Hackware . | . . . . . Protection 3 | . . 3 . . Artifact . | . . . . . Weapon 16 | 3 1 8 3 1 Energy Gun 2 | 2 . . . . Energy Cannon 1 | . . 1 . . Ballistic Gun 6 | 1 1 3 1 . Ballistic Cannon 3 | . . 3 . . Launcher 3 | . . . 2 1 Special Weapon . | . . . . . Impact Weapon . | . . . . . Slashing Weapon 1 | . . 1 . . Piercing Weapon . | . . . . . Special Melee Weapon . | . . . . . Unidentified Prototypes 2 | . . 2 . . Parts Lost 8 | . . 5 . 3 Power 2 | . . 1 . 1 Propulsion . | . . . . . Utility 4 | . . 3 . 1 Weapon 2 | . . 1 . 1 Highest Loss Streak 3 | . . 2 . 3 To Critical Strikes 1 | . . . . 1 Average Backups 20 | 1 9 23 24 20 Power . | . 1 . . 1 Propulsion 6 | . . 7 9 4 Utility 4 | . 4 5 4 4 Weapon 9 | . 3 9 10 10 Tool/Special . | . . . . . Unused Backups 36 | . . 18 1 17 Power 3 | . . . . 3 Propulsion 12 | . . 8 . 4 Utility 8 | . . 2 . 6 Weapon 12 | . . 8 . 4 Tool/Special 1 | . . . 1 . Average Slot Usage (%) 91 | . 100 93 100 78 Engine 10 | . 14 9 11 10 Treads 22 | . 28 21 22 20 Device 2 | . 14 1 . . Storage 12 | . 14 13 11 11 Processor 15 | . . 15 22 22 Protection 8 | . . 8 11 10 Energy Gun 2 | . 14 1 . . Energy Cannon 1 | . . 2 . . Ballistic Gun 7 | . 14 7 12 1 Ballistic Cannon 5 | . . 9 5 . Peak Build Rating 40 | 7 9 24 24 40 Average Rating 16 | 5 7 17 22 17 On Entrance 12 | . 7 9 24 22 Avg Prop Armor Cover (%) . | . . . . . Naked Turns . | . . . . . Heaviest Build 130 | 14 49 130 99 97 Greatest Support 60 | 40 40 46 43 60 Greatest Overweight (x) 3 | . 1 3 2 2 Average Overweight (x) 1 | . . 2 2 1 Largest Inventory Capacity 25 | 8 20 25 25 25 Average Capacity 23 | 6 19 24 25 25 Most Carried 25 | 3 20 25 25 25 Average Carried 21 | 1 9 23 24 22 Final Capacity 25 | 8 20 25 25 25 Final Carried 25 | 3 20 25 25 18 Class Distribution -------------------- 96% | Mutant 3% | Scientist-Mutant Dominant Class ---------------- Mutant | -10/Materials Mutant | -9/Materials Mutant | -9/Mines Mutant | -9/Exiles Resources | -11 -10 -9 -9 -9 ----------- Run | Yrd Mat Mat Min Exi Matter Collected 2102 | 299 260 861 210 472 Remotely . | . . . . . Salvage Created 2565 | 93 445 1769 244 14 Parts 162 | 6 30 109 17 . Haulers Intercepted 7 | . 2 5 . . Recyclers Shooed 10 | . 1 9 . . Parts Field Recycled . | . . . . . Retrieved Matter . | . . . . . Parts Self-Destructed . | . . . . . Prevented . | . . . . . Parts Restored . | . . . . . Kills | -11 -10 -9 -9 -9 ------- Run | Yrd Mat Mat Min Exi Combat Hostiles Destroyed 59 | . 10 34 9 6 Guns 26 | . 10 12 4 . Cannons 21 | . . 21 . . AOE 11 | . . . 5 6 Classes Destroyed 13 | 2 5 4 2 . Builder 2 | . . 1 1 . Tunneler 1 | 1 . . . . Hauler 7 | . 2 5 . . Recycler 10 | 1 1 7 1 . Mechanic 1 | . . 1 . . Operator 2 | . 1 1 . . Watcher 4 | . 2 2 . . Swarmer 20 | . 6 10 4 . Grunt 21 | . 4 14 3 . Brawler 1 | . . 1 . . Sentry 9 | . . 9 . . Demolisher 1 | . . . 1 . Assembled 7 | . . . 1 6 Best Kill Streak 6 | 1 4 5 5 6 Combat Bots Only 6 | . 3 4 4 6 Max Kills in Single Turn 3 | 1 2 2 3 2 Gunslinging . | . . . . . Exploded 2 | . . . 2 2 Melee . | . . . . . Uniques/NPCs Destroyed . | . . . . . Combat | -11 -10 -9 -9 -9 -------- Run | Yrd Mat Mat Min Exi Hostile Shots Fired 244 | . 40 129 20 55 Missed 67 | . 18 37 6 6 Hits 177 | . 22 92 14 49 Melee 2 | . . 2 . . Projectile 175 | . 22 90 14 49 AOE 3 | . . . 3 . Critical Strikes 26 | . 2 1 . 23 Damage Taken 2414 | . 191 1054 234 935 Core 453 | . 52 183 32 186 Absorbed by Shields . | . . . . . Regen/Repaired (Parts) 186 | . . 186 . . Core Remaining (%) 89 | 100 79 . . . Volleys Fired 191 | 4 37 109 10 31 Largest 2 | 2 2 2 2 2 Hottest 105 | 80 60 105 66 63 Shots Fired 379 | 8 72 220 19 60 Gun 239 | 8 72 93 13 53 Cannon 128 | . . 127 1 . Launcher 12 | . . . 5 7 Special . | . . . . . Kinetic 283 | 3 37 176 14 53 Thermal 83 | 4 35 44 . . Explosive 12 | . . . 5 7 Electromagnetic 1 | 1 . . . . Robot Hit Streak 22 | 7 15 22 9 22 Robot Miss Streak 6 | 1 4 6 2 1 Penetration Max . | . . . . . Secondary Targets 2 | . 2 . . . Max Gunslinging Chain 1 | . 1 . . . Shots Hit Robots 271 | 7 50 159 8 47 Core Hits 159 | 3 24 100 17 15 Critical Kills 1 | . . 1 . . Critical Parts Destroyed . | . . . . . Critical Strikes 2 | . . 2 . . Meltdown 1 | . . 1 . . Blast 1 | . . 1 . . Melee Attacks 11 | . . 10 1 . Impact . | . . . . . Slashing 11 | . . 10 1 . Piercing . | . . . . . Sneak Attacks . | . . . . . Combat Hostiles . | . . . . . Follow-up Attacks . | . . . . . Damage Inflicted 5115 | 79 644 2624 610 1158 Guns 2430 | 79 642 794 122 793 Cannons 1859 | . . 1820 39 . Explosions 814 | . . . 449 365 Melee . | . . . . . Ramming 12 | . 2 10 . . Kinetic 3368 | 36 329 2049 161 793 Thermal 953 | 43 313 565 32 . Explosive 782 | . . . 417 365 Electromagnetic . | . . . . . Impact . | . . . . . Slashing . | . . . . . Piercing . | . . . . . Highest Corruption 6 | . . 6 6 6 Average Corruption 6 | . . 6 6 6 Corruption Purged . | . . . . . Corruption Blocked . | . . . . . Effects 149 | . . 66 35 48 Message Errors 43 | . . 18 7 18 Matter Fused 31 | . . 10 11 10 Heat Flow Errors 19 | . . 9 3 7 Energy Discharges 20 | . . 7 6 7 Parts Fused 3 | . . 2 1 . Data Loss (minor) 17 | . . 9 3 5 Data Loss (major) 6 | . . 5 1 . Misfires 5 | . . 3 2 . Alerts 4 | . . 2 1 1 Weapon Failures 1 | . . 1 . . Overload Shots . | . . . . . Overflow Damage 30 | . . 2 4 24 Projectiles 2 | . . 2 . . Explosions 28 | . . . 4 24 Melee . | . . . . . Knockbacks 24 | . . 22 2 . Impact 1 | . . 1 . . Kinetic 23 | . . 21 2 . Secondary . | . . . . . Self-Inflicted Damage 41 | . . . 23 18 Shots 2 | . . . 1 1 Rammed 4 | . 1 2 1 . Targets Rammed 4 | . 1 2 1 . Kicked . | . . . . . Crushed . | . . . . . Highest Temperature 303 | 18 46 303 131 254 Average Temperature 55 | 12 14 54 46 77 Received Heat Transfer 387 | . 45 312 30 . Siege Activations . | . . . . . Martial Activations . | . . . . . Shielding Activations . | . . . . . Robots Disrupted . | . . . . . Combat Hostiles . | . . . . . Robots Corrupted . | . . . . . Combat Hostiles . | . . . . . Parts Fried . | . . . . . Impact Corruptions . | . . . . . Robots Melted 1 | . . 1 . . Combat Hostiles 1 | . . 1 . . Parts Melted 4 | . 2 2 . . Heat Transferred 1940 | 100 700 1090 50 . Parts Sabotaged . | . . . . . Parts Stolen . | . . . . . Parts Stripped . | . . . . . Power Chain Reactions . | . . . . . Alert | -11 -10 -9 -9 -9 ------- Run | Yrd Mat Mat Min Exi Maximum Alert Level 2 | . . 2 1 . Low Security (%) 72 | 100 100 54 93 . Level 1 21 | . . 35 6 . Level 2 5 | . . 9 . . Level 3 . | . . . . . Level 4 . | . . . . . Level 5 . | . . . . . High Security . | . . . . . Max Security . | . . . . . Peak Influence 420 | 5 108 420 230 . Initial 160 | . . 22 160 . Average 142 | . 22 211 78 . Influence Increases 1594 | 10 322 1009 253 . Destroy 0b10 Robot/C 1040 | . 200 680 160 . Destroy 0b10 Robot/NC 135 | 10 30 85 10 . Destroy Leader 252 | . 58 174 20 . Successful Hack 53 | . 4 49 . . Select Force Hacks 30 | . 30 . . . Disable Machine 15 | . . . 15 . Destroy Structure 39 | . . 6 33 . Lose Combat Pursuer 30 | . . 15 15 . Influence Decreases 1594 | 10 268 650 654 12 Entered New Map 297 | . . 32 253 12 Time Decay 1247 | 10 268 568 401 . Lost Part 50 | . . 50 . . Squads Dispatched 4 | . 2 2 . . Investigation 1 | . 1 . . . Extermination . | . . . . . Reinforcement 3 | . 1 2 . . Assault . | . . . . . Garrison . | . . . . . Intercept . | . . . . . Searches Triggered . | . . . . . Construction Impeded . | . . . . . Haulers Reinforced . | . . . . . Active Scanning Responses . | . . . . . Cargo Convoy Interrupts . | . . . . . Stealth | -11 -10 -9 -9 -9 --------- Run | Yrd Mat Mat Min Exi Distress Signals 7 | . 3 4 . . Communications Jammed . | . . . . . Distress Signals . | . . . . . Times Spotted 86 | . 16 53 12 5 Peak Tracking Total 9 | . 4 5 4 9 Tactical Retreats 2 | . . 1 1 . Traps | -11 -10 -9 -9 -9 ------- Run | Yrd Mat Mat Min Exi Traps Triggered . | . . . . . Indirectly . | . . . . . Trap Hack Attempts . | . . . . . Triggered . | . . . . . Disarmed . | . . . . . Reprogrammed . | . . . . . Reused . | . . . . . Traps Extracted . | . . . . . Installed 1 | . . . . 1 Triggered . | . . . . . Most Traps Carried 2 | . . . 2 2 Machines | -11 -10 -9 -9 -9 ---------- Run | Yrd Mat Mat Min Exi Machines Disabled 4 | . . . 1 3 Max in Single Turn 1 | . . . 1 1 Machines Repaired . | . . . . . Machines Dismantled . | . . . . . Machines Sabotaged . | . . . . . Overloaded Fab Kills . | . . . . . Hacking | -11 -10 -9 -9 -9 --------- Run | Yrd Mat Mat Min Exi Machines Accessed 22 | . 7 13 . 2 Terminals 13 | . 5 8 . . Fabricators . | . . . . . Repair Stations 3 | . 1 2 . . Recycling Units 2 | . 1 1 . . Scanalyzers 2 | . . 2 . . Garrison Access . | . . . . . Total Hacks 58 | . 18 36 . 4 Successful 30 | . 4 22 . 4 Failed 28 | . 14 14 . . Catastrophic 5 | . 2 3 . . Database Lockouts . | . . . . . Manual 36 | . 16 18 . 2 Terminals 31 | . 13 18 . . Fabricators . | . . . . . Repair Stations 8 | . 2 6 . . Recycling Units 6 | . 3 3 . . Scanalyzers 9 | . . 9 . . Garrison Access . | . . . . . Terminal Hacks 6 | . . 2 . 4 Record 3 | . . . . 3 Prototype ID Bank 2 | . . 2 . . Proto ID Catalog 1 | . . . . 1 Fabricator Hacks . | . . . . . Repair Station Hacks 5 | . 1 4 . . Scan Component 3 | . 1 2 . . Repair 2 | . . 2 . . Recycling Unit Hacks . | . . . . . Scanalyzer 7 | . . 7 . . Insert Component 1 | . . 1 . . Analyze 1 | . . 1 . . Retrieve Study 5 | . . 5 . . Garrison Access Hacks . | . . . . . Unauthorized Hacks 12 | . 3 9 . . Terminals 8 | . 2 6 . . Botnet 1 | . . 1 . . Skim 7 | . 2 5 . . Fabricators . | . . . . . Repair Stations . | . . . . . Recycling Units 4 | . 1 3 . . Monitor 1 | . . 1 . . Reject 1 | . . 1 . . Mask 1 | . . 1 . . Tunnel 1 | . 1 . . . Scanalyzers . | . . . . . Garrison Access . | . . . . . Data Cores Recovered . | . . . . . Used . | . . . . . Hacking Detections 19 | . 6 13 . . Full Trace Events . | . . . . . Feedback Events . | . . . . . Feedback Blocked . | . . . . . Robot Schematics Acquired . | . . . . . Robots Built . | . . . . . Authchips . | . . . . . Time . | . . . . . Total Robot Build Rating . | . . . . . Part Schematics Acquired 1 | . . 1 . . Parts Built . | . . . . . Authchips . | . . . . . Time . | . . . . . Total Part Build Rating . | . . . . . Part Studies Acquired 5 | . . 5 . . Parts Repaired 2 | . . 2 . . Time 39 | . . 39 . . Parts Recycled . | . . . . . Recycled Matter . | . . . . . Retrieved Matter . | . . . . . Retrieved Components . | . . . . . Parts Scanalyzed 1 | . . 1 . . Part Schematics Acquired 1 | . . 1 . . Parts Damaged . | . . . . . Bothacking | -11 -10 -9 -9 -9 ------------ Run | Yrd Mat Mat Min Exi Used RIF Installer . | . . . . . Robots Hacked . | . . . . . Non-combat . | . . . . . Combat . | . . . . . Robot Hacks Applied . | . . . . . Relay Couplers Released . | . . . . . Fabnet Peak Effective % . | . . . . . Robots Rewired . | . . . . . Allies Hacked . | . . . . . Hacks Repelled . | . . . . . Allies | -11 -10 -9 -9 -9 -------- Run | Yrd Mat Mat Min Exi Total Allies . | . . . . . Largest Group . | . . . . . Highest-Rated Group . | . . . . . Highest-Rated Ally . | . . . . . Total Orders . | . . . . . Ally Attacks . | . . . . . Total Damage . | . . . . . Kills . | . . . . . Allies Corrupted . | . . . . . Allies Melted . | . . . . . Intel | -11 -10 -9 -9 -9 ------- Run | Yrd Mat Mat Min Exi Active Infowar (turns) 1919 | 52 1152 715 . . Terrain 238 | . . 238 . . Seismic 1496 | 52 1152 292 . . T.N.C. 185 | . . 185 . . Robot Analysis Total . | . . . . . Derelict Logs Recovered 1 | . . . 1 . Drone Launches . | . . . . . Drone Recoveries . | . . . . . Exploration | -11 -10 -9 -9 -9 ------------- Run | Yrd Mat Mat Min Exi Turns Passed 7895 | 137 1152 3511 1269 1826 Spaces Moved 2636 | 70 421 1092 437 616 Core 3 | 3 . . . . Treads 2597 | 67 421 1092 437 580 Legs 36 | . . . . 36 Wheels . | . . . . . Hover . | . . . . . Flight . | . . . . . Fastest Speed 50 | 50 160 200 280 140 Average Speed 265 | 155 238 273 280 272 Slowest Speed 320 | 160 240 320 280 280 Overloaded Moves 17 | . . . . 17 Propulsion Burnouts . | . . . . . Robots Hopped . | . . . . . Potential Cave-ins . | . . . . . Cave-ins Triggered . | . . . . . Exploration Rate (%) 65 | 5 80 88 83 71 Regions Visited 4 Branch Regions 2 Pre-discovered Areas 3 | . 1 1 . 1 Known Exits Taken 1 | . . 1 . . Unknown Exits Taken 3 | 1 1 . 1 . Scrap Searched . | . . . . . Spaces Dug 21 | . . 4 17 . Terrain Destroyed 88 | . . 4 45 39 Melee 5 | . . 4 1 . Projectile 1 | . . . . 1 AOE 82 | . . . 44 38 Terrain Rammed . | . . . . . Walls Destroyed . | . . . . . Machines Disabled . | . . . . . Actions | -11 -10 -9 -9 -9 --------- Run | Yrd Mat Mat Min Exi Total 3194 | 86 496 1416 467 729 Wait 176 | 2 20 112 7 35 Move 2632 | 69 420 1091 436 616 Hop . | . . . . . Pick Up 74 | 2 16 38 3 15 Fast Attach 10 | 7 . 3 . . Attach 9 | . . 6 . 3 Detach . | . . . . . Swap 32 | 2 2 14 6 8 Drop 54 | . . 31 3 20 Fire 191 | 4 37 109 10 31 Melee 11 | . . 10 1 . Ram . | . . . . . Kick . | . . . . . Crush 4 | . 1 2 1 . Escape Stasis . | . . . . . Rewire . | . . . . . Trap 1 | . . . . 1 Miscellaneous . | . . . . . Route ------- -11/Scrapyard -10/Materials (discovered 3 exits: *Mat x2 / [*Min]) -9/Materials (discovered 5 exits: [*Mat x3] / *Min x2) -9/Mines (discovered 4 exits: [*Mat x2] / *Exi / [*Zio]) -9/Exiles (discovered 1 exit: [*Min]) History --------- Turn | Location | Event 3 | -11/Scrapyard | Discovered new exit (range 16) 138 | -11/Scrapyard | Entered Materials 302 | -10/Materials | Build established: Mutant 467 | -10/Materials | Discovered new exit (range 10) 660 | -10/Materials | Discovered new exit (range 13) 1258 | -10/Materials | Discovered new exit (range 4) 1290 | -10/Materials | Entered another Materials area 1290 | -9/Materials | Evolved 2 slots: Utility x2 1543 | -9/Materials | Discovered new exit (range 8) 1877 | -9/Materials | Discovered new exit (range 15) 1996 | -9/Materials | Repaired Lgt. Treads+ 2695 | -9/Materials | Repaired Lgt. Treads+ 2888 | -9/Materials | Discovered new exit (range 15) 3101 | -9/Materials | Discovered new exit (range 15) 3529 | -9/Materials | Discovered new exit (range 16) 3881 | -9/Materials | Learned Storage trap positions 3897 | -9/Materials | Learned Storage machine intel 3901 | -9/Materials | Learned location of 3 exits from Materials 3902 | -9/Materials | Learned Storage trap positions 3903 | -9/Materials | Learned 4 Recycling zone layouts 3904 | -9/Materials | Identified exit to Mines 3914 | -9/Materials | Learned 4 Recycling zone layouts 4801 | -9/Materials | Entered Mines 4806 | -9/Mines | Core integrity fell below 50% 4847 | -9/Mines | A Derelict revealed a hidden shortcut to a safe place 4951 | -9/Mines | Assembled infested the area 5581 | -9/Mines | Discovered new exit (range 11) 5642 | -9/Mines | Learned Materials stockpile data 5711 | -9/Mines | Discovered new exit (range 12) 5978 | -9/Mines | Found a hidden stash of uninstalled traps 6059 | -9/Mines | Deemed a non-threat by the Exiles lab entrance 6059 | -9/Mines | Discovered new exit (range 5) 6070 | -9/Mines | Entered Exiles 6139 | -9/Exiles | Met 8R-AWN 6186 | -9/Exiles | Met EX-HEX 6270 | -9/Exiles | Met EX-BIN 6309 | -9/Exiles | Aligned with FarCom system 6312 | -9/Exiles | Given EX-Vault access code 6382 | -9/Exiles | Opened EX-Vault 6455 | -9/Exiles | Warned to stay clear of 0b10 Research branches 6539 | -9/Exiles | Met EX-DEC 6556 | -9/Exiles | Learned location of Zion (-7) 6689 | -9/Exiles | Discovered new exit (range 14) 7339 | -9/Exiles | Found Potential Leg 7343 | -9/Exiles | Found Potential Leg 7350 | -9/Exiles | Found 0b10 Alert Chip 7750 | -9/Exiles | Attacked by the Exiles 7887 | -9/Exiles | Core integrity fell below 20% 7896 | -9/Exiles | Destroyed by 8R-AWN with 8R-AWN's Boregun Last Messages --------------- 07872_ Penetrated by HV Slug. 07872_ HV Slug penetrates Earth. 07872_ Penetrated by HV Slug. 07872_ Critical hit (Destroy). 07872_ Enh. Autogun destroyed. 07872_ HV Slug penetrates Earth. 07875_ Penetrated by HV Slug. 07875_ HV Slug penetrates Earth. 07875_ Penetrated by HV Slug. 07875_ HV Slug penetrates Earth. 07877_ Penetrated by HV Slug. 07877_ HV Slug penetrates Earth. 07877_ Penetrated by HV Slug. 07877_ HV Slug penetrates Earth. 07879_ Penetrated by HV Slug. 07890_ HV Slug penetrates Wall. 07890_ HV Slug penetrates Earth. 07890_ Penetrated by HV Slug. 07895_ System corrupted: Energy discharge (-30). 07896_ Penetrated by HV Slug. Map ----- +----------------------------------------------------+ | ?????????????????????????????????????????????????? | | ????????????#????????????????????????????????????? | | ?????????# #???????????????????????????????????? | | ????????# ???????????????????????????????????? | | ????????# < ???????????????????????????????????? | | ????????# ???????????????????????????????????? | | ????????# ??????????????????????????????????? | | ????????# ??????????????????????????????????? | | ?????????# ??????????????????????????????????? | | ?????????# #?????????????????????????????????? | | ??????????# ?????????????#######?????????????? | | ??????????# #######??????#!!! "#?????????????? | | ??????????# #""##?????# "#?????????????? | | ???????????# #?????# "#?????????????? | | ???????????##" ##???## ""#??????????#### | | ???????????#"" === #####" ""#??????????# | | ???????????#### = ! ##" ""##?????????#"" | | ??????????????## #"" ## ##????????#"" | | ???????????????#"## # # #???????#"" | | ???????????????####### #???????#"" | | ?????????????????????### # #??????# | | ???????????????########" # ##??????#"" | | ???????????????# !""""" # ##??????### | | ???????????????#! g #####???### | | ???????????????#! """#####X# | | ???????????????#! =!@; # | | ???????????????# !""""" ;;#### # | | ???????????????#########;# ???## # * | | ??????????????????????? ? ??????### | | ??????????????????????# #?##???????### | | ?????????????????????? ?????????????## | | ?????????????????????# #??????????????## | | ????????????????????? ????????????????##" | | ????????????????????# #?????????????????#""" | | ???????????????????? ?????????????????##" | | ???????????????????? #?????????????????#"" | | ??????????????????? ??????????????????#""" | | ??????????????????? ??????????????????#""" | | ?????????????????? ??????????????????#""" | | ??????????????????????????????????????#"" | | ??????????????????????????????????????#""" | | ??????????????????????????????????????#"" | | ??????????????????????????????????????##"" | | ???????????????????????????????????????#"""" | | ????????????????????????????????????????# | | ????????????????????????????????????????#" | | ????????????????????????????????????????#"""" | | ????????????????????????????????????????#"" | | ?????????????????????????????????????????" | | ?????????????????????????????????????????""" | +----------------------------------------------------+ Best States ------------- Heat Dissipation 28 Energy Generation 12 Energy Capacity 265 Matter Stores 300 Matter Capacity 300 Sight Range 16 Terrain Scan Range 16 Terrain Scan Density 10 Armor Coverage 150 Evasion (%) 40 Targeting Accuracy 12 Recoil Reduction 2 Item Schematics ----------------- Hacking Suite | -9/Materials | Scanalyzed Robot Schematics ------------------ None Fabricated ------------ Nothing Repaired ---------- Lgt. Treads | 30% | -9/Materials Lgt. Treads | 37% | -9/Materials Studied --------- Lgt. Assault Rifle | -9/Materials | Hacked Lgt. Treads | -9/Materials | Hacked Lgt. Ion Engine | -9/Materials | Hacked Ion Engine | -9/Materials | Hacked Lgt. Cannon | -9/Materials | Hacked Alien Tech Used ----------------- None Achievements -------------- Myspace Sixth Sense Challenges ------------ None Game ------ Seed AnalysisMatterInterface Manual? 0 Play Time 00:38:41 Cumulative 317.2 hours Start 2025.10.23 @ 12:29:25 End 2025.10.23 @ 21:36:02 Sessions 1 Manual Loads 0 Difficulty Rogue Special Mode None Game No. 166 Rogue 158 Adventurer 8 Explorer 0 Win Type - Total 20 Types 12/0/3/2/0/0/1/0/1/1 Lore% 88 Gallery% 86 Achievement% 55 Wizard Run 0 Options --------- Layout 2 ASCII 0 Keyboard 1 Movement Numpad Keybinds 1 Fullscreen 1 Font 24/Smallcaps Map View 50x44 Zoom Use 0% Tactical HUD 1 Map Filters SATURATION(78)|BRIGHTNESS(125) Filters SHIFT_HUE(220) Steam 1 RUN: 58f4d5f8-c748-4d83-89e8-a0c984adb6be